bitfinex/quotes_BTCUSD_20250601
["timestamp","ask_amount","ask_price","bid_price","bid_amount"]
[1748755971725,1.39957349,104630.0,104620.0,1.01482241]
[1748755971938,1.38307349,104630.0,104620.0,1.01482241]
[1748755972162,1.36697349,104630.0,104620.0,1.00586285]
[1748755972341,1.36697349,104630.0,104620.0,1.01482229]
[1748755972670,1.36697349,104630.0,104620.0,1.01482224]
[1748755973192,1.36697349,104630.0,104620.0,1.00586285]
[1748755973369,1.36697349,104630.0,104620.0,1.01482223]
[1748755974868,1.36697349,104630.0,104620.0,1.0148222]
[1748755975939,1.36689751,104630.0,104620.0,1.0148222]
[1748755976734,1.36689751,104630.0,104620.0,1.00586285]
[1748755977101,1.36689751,104630.0,104620.0,1.01482218]
[1748755978771,1.36689751,104630.0,104620.0,1.00586285]
[1748755978922,1.36689751,104630.0,104620.0,1.01482218]
[1748755979121,1.36689751,104630.0,104620.0,1.01482217]
[1748755979330,1.36681751,104630.0,104620.0,1.01482217]
[1748755980030,1.36681751,104630.0,104620.0,1.01482218]
[1748755980715,1.36681751,104630.0,104620.0,1.00586285]
[1748755981677,1.36681751,104630.0,104620.0,1.01482218]
[1748755982586,1.36681751,104630.0,104620.0,1.00586285]
[1748755983192,1.36681751,104630.0,104620.0,1.01482216]
[1748755984222,1.36681751,104630.0,104620.0,1.01482217]
[1748755984430,1.36681751,104630.0,104620.0,1.00586285]
[1748755984624,1.36681751,104630.0,104620.0,1.01482217]
[1748755984792,1.36681751,104630.0,104620.0,1.00586285]
[1748755985010,1.36681751,104630.0,104620.0,1.01482217]
[1748755986102,1.36681751,104630.0,104620.0,1.00586285]
[1748755986330,1.36681751,104630.0,104620.0,1.01482218]
[1748755986986,1.36681751,104630.0,104620.0,1.01482216]
[1748755987438,1.38261751,104630.0,104620.0,1.01482216]
[1748755987890,1.38261751,104630.0,104620.0,1.00586285]
[1748755988106,1.39761751,104630.0,104620.0,1.01482216]
[1748755988551,1.39761751,104630.0,104620.0,1.01482215]
[1748755989182,1.39761751,104630.0,104620.0,1.01482216]
[1748755990482,1.39761751,104630.0,104620.0,1.00586285]
[1748755990702,1.39761751,104630.0,104620.0,1.01482215]
[1748755991455,1.39761751,104630.0,104620.0,1.01482217]
[1748755992096,1.39761751,104630.0,104620.0,1.00586285]
[1748755992273,1.39761751,104630.0,104620.0,1.01482208]
[1748755992714,1.39761751,104630.0,104620.0,1.01482207]
[1748755993676,1.39761751,104630.0,104620.0,1.01482211]
[1748755993887,1.39761751,104630.0,104620.0,1.0148221]
[1748755995895,1.39761751,104630.0,104620.0,1.00586285]
[1748755997558,1.38181751,104630.0,104620.0,1.00586285]
[1748755997986,1.38177751,104630.0,104620.0,1.00586285]
[1748755998199,1.36677751,104630.0,104620.0,1.01482209]
[1748755998659,1.36677751,104630.0,104620.0,1.01482208]
[1748756000522,1.36677751,104630.0,104620.0,1.00586285]
[1748756000839,1.36677751,104630.0,104620.0,1.01482208]
[1748756002765,1.36677751,104630.0,104620.0,1.00586285]
[1748756002983,1.38217751,104630.0,104620.0,1.0148221]
[1748756003225,1.38217751,104630.0,104620.0,1.00586285]
[1748756003680,1.39757751,104630.0,104620.0,1.0148221]
[1748756003933,1.39757751,104630.0,104620.0,1.00586285]
[1748756004144,1.39757751,104630.0,104620.0,1.0148221]
[1748756004549,1.39757751,104630.0,104620.0,1.00586285]
[1748756005319,1.39757751,104630.0,104620.0,1.01482213]
[1748756005517,1.39757751,104630.0,104620.0,1.00586285]
[1748756006786,1.39757751,104630.0,104620.0,1.01482216]
[1748756006980,1.39757751,104630.0,104620.0,1.00586285]
[1748756007182,1.39757751,104630.0,104620.0,1.01482216]
[1748756007382,1.39757751,104630.0,104620.0,1.00586285]
[1748756007994,1.39757751,104630.0,104620.0,1.01482217]
[1748756008394,1.39757751,104630.0,104620.0,1.00586285]
[1748756008573,1.39757751,104630.0,104620.0,1.01482217]
[1748756008788,1.39757751,104630.0,104620.0,1.00586285]
[1748756009809,1.39757751,104630.0,104620.0,1.0148222]
[1748756010017,1.39757751,104630.0,104620.0,1.00586285]
[1748756010631,1.39757751,104630.0,104620.0,1.0148222]
[1748756010836,1.39757751,104630.0,104620.0,1.00586285]
[1748756011606,1.39757751,104630.0,104620.0,1.01482221]
[1748756011786,1.39757751,104630.0,104620.0,1.00586285]
[1748756013174,1.39757751,104630.0,104620.0,1.0148222]
[1748756013399,1.39757751,104630.0,104620.0,1.01482221]
[1748756013596,1.39757751,104630.0,104620.0,1.00586285]
[1748756013803,1.39757751,104630.0,104620.0,1.01482221]
[1748756014045,1.38217751,104630.0,104620.0,1.01482221]
[1748756014239,1.36677751,104630.0,104620.0,1.01482223]
[1748756014433,1.36677751,104630.0,104620.0,1.00586285]
[1748756014638,1.36677751,104630.0,104620.0,1.01482223]
[1748756014920,1.36677751,104630.0,104620.0,1.01482222]
[1748756016772,1.36677751,104630.0,104620.0,1.01482224]
[1748756017378,1.36677751,104630.0,104620.0,1.01482223]
[1748756017578,1.36677751,104630.0,104620.0,1.00586285]
[1748756017782,1.36677751,104630.0,104620.0,1.01482223]
[1748756018397,1.36677751,104630.0,104620.0,1.01482222]
[1748756019617,1.36677751,104630.0,104620.0,1.01482223]
[1748756019829,1.36677751,104630.0,104620.0,1.01482222]
[1748756020714,1.36677751,104630.0,104620.0,1.0237816]
[1748756021340,1.38187751,104630.0,104620.0,1.02378163]
[1748756021548,1.39777751,104630.0,104620.0,1.02378163]
[1748756021778,1.39777751,104630.0,104620.0,1.02378161]
[1748756022319,1.39777751,104630.0,104620.0,1.01482222]
[1748756022523,1.39777751,104630.0,104620.0,1.02378165]
[1748756023187,1.3884364,104630.0,104620.0,1.02378167]
[1748756024069,1.3884364,104630.0,104620.0,1.01482222]
[1748756024806,1.3884364,104630.0,104620.0,1.02378169]
[1748756025572,1.3884364,104630.0,104620.0,1.02378166]
[1748756026426,1.3733364,104630.0,104620.0,1.02378166]
[1748756026945,1.3574364,104630.0,104620.0,1.02378164]
[1748756027269,1.3574364,104630.0,104620.0,1.01482222]
[1748756027467,1.3573964,104630.0,104620.0,1.02378161]
[1748756028771,1.3860934,104630.0,104620.0,1.02378161]
[1748756028974,1.3860934,104630.0,104620.0,1.02378162]
[1748756029261,1.3860934,104630.0,104620.0,1.02378164]
[1748756029455,1.3860934,104630.0,104620.0,1.01482222]
[1748756029617,1.3860934,104630.0,104620.0,1.02378164]
[1748756030901,1.3860934,104630.0,104620.0,1.01482222]
[1748756031129,1.3860934,104630.0,104620.0,1.02378164]
[1748756031337,1.3860934,104630.0,104620.0,1.01482222]
[1748756031549,1.3860934,104630.0,104620.0,1.02378164]
[1748756033143,1.3860934,104630.0,104620.0,1.01482222]
[1748756033770,1.3860934,104630.0,104620.0,1.02378165]
[1748756034820,1.3860934,104630.0,104620.0,1.01482222]
[1748756035382,1.3860934,104630.0,104620.0,1.02378165]
[1748756035556,1.3860934,104630.0,104620.0,1.01482222]
[1748756035786,1.3860934,104630.0,104620.0,1.02378165]
[1748756036457,1.3860934,104630.0,104620.0,1.02378166]
[1748756036656,1.3860534,104630.0,104620.0,1.02378166]
[1748756038327,1.3860534,104630.0,104620.0,1.01482222]
[1748756038512,1.3860534,104630.0,104620.0,1.02378166]
[1748756040508,1.3860534,104630.0,104620.0,1.01482222]
[1748756040734,1.3860534,104630.0,104620.0,1.02378166]
[1748756040965,1.3573564,104630.0,104620.0,1.01482222]
[1748756042255,1.3573564,104630.0,104620.0,1.02378167]
[1748756042468,1.3573564,104630.0,104620.0,1.01482222]
[1748756042685,1.3573564,104630.0,104620.0,1.03274112]
[1748756042903,1.3573564,104630.0,104620.0,1.02378167]
[1748756043933,1.3573564,104630.0,104620.0,1.03274113]
[1748756044546,1.3573564,104630.0,104620.0,1.04170058]
[1748756045378,1.3573564,104630.0,104620.0,1.03274113]
[1748756045786,1.3573564,104630.0,104620.0,1.04170057]
[1748756047011,1.3573564,104630.0,104620.0,1.03274113]
[1748756047443,1.3573564,104630.0,104620.0,1.04170057]
[1748756048800,1.3573564,104630.0,104620.0,1.04170058]
[1748756049020,1.3860534,104630.0,104620.0,1.03274113]
[1748756049489,1.3860534,104630.0,104620.0,1.04170058]
[1748756049704,1.3860534,104630.0,104620.0,1.03274113]
[1748756049915,1.3860534,104630.0,104620.0,1.04170058]
[1748756051081,1.3860534,104630.0,104620.0,1.03274113]
[1748756051289,1.3860534,104630.0,104620.0,1.04170058]
[1748756052651,1.3860534,104630.0,104620.0,1.03274113]
[1748756052857,1.3860534,104630.0,104620.0,1.04170058]
[1748756053471,1.3860534,104630.0,104620.0,1.04170059]
[1748756054576,1.3860534,104630.0,104620.0,1.0417006]
[1748756055974,1.3860534,104630.0,104620.0,1.04170063]
[1748756056448,1.3860534,104630.0,104620.0,1.04673478]
[1748756057222,1.3573564,104630.0,104620.0,1.0377753]
[1748756057451,1.3573564,104630.0,104620.0,1.04673482]
[1748756057655,1.3573564,104630.0,104620.0,1.0377753]
[1748756057870,1.3573564,104630.0,104620.0,1.04673481]
[1748756058422,1.3573564,104630.0,104620.0,1.0467348]
[1748756059286,1.0679164,104630.0,104620.0,1.0467348]
[1748756059456,1.3573564,104630.0,104620.0,1.0467348]
[1748756059876,1.3573564,104630.0,104620.0,1.0377753]
[1748756060204,1.3573564,104630.0,104620.0,1.0467348]
[1748756060988,1.3573564,104630.0,104620.0,1.04673479]
[1748756061400,1.3573564,104630.0,104620.0,1.04673478]
[1748756062358,1.3573564,104630.0,104620.0,1.0377753]
[1748756062966,1.3573564,104630.0,104620.0,1.04673478]
[1748756063169,1.3573564,104630.0,104620.0,1.0377753]
[1748756064792,1.3573564,104630.0,104620.0,1.04673478]
[1748756065634,1.3573564,104630.0,104620.0,1.04673476]
[1748756066173,1.3573564,104630.0,104620.0,1.0377753]
[1748756067135,1.3573564,104630.0,104620.0,1.04673475]
[1748756067346,1.3573564,104630.0,104620.0,1.0377753]
[1748756068303,1.3573564,104630.0,104620.0,1.04673473]
[1748756068744,1.3573564,104630.0,104620.0,1.0377753]
[1748756068947,1.3573564,104630.0,104620.0,1.0467347]
[1748756069787,1.3573564,104630.0,104620.0,1.0377753]
[1748756070002,1.3573564,104630.0,104620.0,1.0467347]
[1748756070361,1.3573564,104630.0,104620.0,1.04673468]
[1748756070828,1.3573564,104630.0,104620.0,1.04673467]
[1748756071062,1.3573564,104630.0,104620.0,1.0377753]
[1748756071475,1.3573564,104630.0,104620.0,1.04673467]
[1748756072065,1.3573564,104630.0,104620.0,1.0377753]
[1748756072389,1.3573564,104630.0,104620.0,1.04673467]
[1748756072604,1.3573564,104630.0,104620.0,1.0377753]
[1748756074157,1.3573564,104630.0,104620.0,1.04673467]
[1748756074344,1.3573564,104630.0,104620.0,1.0377753]
[1748756074645,1.3573564,104630.0,104620.0,1.04673467]
[1748756074850,1.3573564,104630.0,104620.0,1.0377753]
[1748756075052,1.3573564,104630.0,104620.0,1.04673467]
[1748756075895,1.3860524,104630.0,104620.0,1.04673466]
[1748756077246,1.3860524,104630.0,104620.0,1.0377753]
[1748756077470,1.3860524,104630.0,104620.0,1.04673466]
[1748756077639,1.3860524,104630.0,104620.0,1.04673465]
[1748756078403,1.3860524,104630.0,104620.0,1.0377753]
[1748756078630,1.4167524,104630.0,104620.0,1.04673464]
[1748756078829,1.4167524,104630.0,104620.0,1.0377753]
[1748756079056,1.4167524,104630.0,104620.0,1.04673464]
[1748756080141,1.4167524,104630.0,104620.0,1.0377753]
[1748756080523,1.4167524,104630.0,104620.0,1.04673464]
[1748756080722,1.4167524,104630.0,104620.0,1.0377753]
[1748756081041,1.4167524,104630.0,104620.0,1.04673464]
[1748756081348,1.4167524,104630.0,104620.0,1.04673463]
[1748756082160,1.4167524,104630.0,104620.0,1.0377753]
[1748756082360,1.4167524,104630.0,104620.0,1.04673462]
[1748756082494,1.4167524,104630.0,104620.0,1.0377753]
[1748756082690,1.4167524,104630.0,104620.0,1.05569395]
[1748756082928,1.4167524,104630.0,104620.0,1.04673462]
[1748756083797,1.3860524,104630.0,104620.0,1.05569395]
[1748756084000,1.3860524,104630.0,104620.0,1.04673462]
[1748756084677,1.3860524,104630.0,104620.0,1.05569394]
[1748756084894,1.3860524,104630.0,104620.0,1.04673462]
[1748756085081,1.3860524,104630.0,104620.0,1.05569393]
[1748756086839,1.3860524,104630.0,104620.0,1.05569395]
[1748756087029,1.3860524,104630.0,104620.0,1.04673462]
[1748756087234,1.3860524,104630.0,104620.0,1.05569395]
[1748756087352,1.3860524,104630.0,104620.0,1.05569397]
[1748756088202,1.3860524,104630.0,104620.0,1.05569398]
[1748756088617,1.3860524,104630.0,104620.0,1.05569402]
[1748756089403,1.3860524,104630.0,104620.0,1.0556941]
[1748756090392,1.3860524,104630.0,104620.0,1.04673462]
[1748756090902,1.3860524,104630.0,104620.0,1.05569412]
[1748756091866,1.3860124,104630.0,104620.0,1.05569412]
[1748756092081,1.3860124,104630.0,104620.0,1.04673462]
[1748756092299,1.3860124,104630.0,104620.0,1.05569411]
[1748756093150,1.3860124,104630.0,104620.0,1.04673462]
[1748756093387,1.3860124,104630.0,104620.0,1.0556941]
[1748756094036,1.3860124,104630.0,104620.0,1.04673462]
[1748756094227,1.3860124,104630.0,104620.0,1.0556941]
[1748756094416,1.3860124,104630.0,104620.0,1.04673462]
[1748756094896,1.3860124,104630.0,104620.0,1.0556941]
[1748756095331,1.3860124,104630.0,104620.0,1.04673462]
[1748756096311,1.3860124,104630.0,104620.0,1.05569411]
[1748756096546,1.3860124,104630.0,104620.0,1.04673462]
[1748756097516,1.3860124,104630.0,104620.0,1.05569411]
[1748756097667,1.3860124,104630.0,104620.0,1.04673462]
[1748756098095,1.3860124,104630.0,104620.0,1.05569411]
[1748756098305,1.0966124,104630.0,104620.0,1.04673462]
[1748756098508,1.3859724,104630.0,104620.0,1.04673462]
[1748756098956,1.3859724,104630.0,104620.0,1.05569407]
[1748756099161,1.3859724,104630.0,104620.0,1.04673462]
[1748756101447,1.3859724,104630.0,104620.0,1.05569406]
[1748756101691,1.3859724,104630.0,104620.0,1.05569407]
[1748756101972,1.3859724,104630.0,104620.0,1.04673462]
[1748756102196,1.3859724,104630.0,104620.0,1.05569406]
[1748756102422,0.41016264,104630.0,104620.0,1.58763071]
[1748756102642,0.6803833,104630.0,104620.0,1.91824216]
[1748756102886,0.6803833,104630.0,104620.0,1.59718847]
[1748756103132,0.3910233,104630.0,104620.0,1.89550682]
[1748756103359,0.40058024,104630.0,104620.0,1.88654847]
[1748756103575,0.40058014,104630.0,104620.0,1.88654847]
[1748756103793,0.41013717,104630.0,104620.0,1.88854847]
[1748756103981,0.41013717,104630.0,104620.0,1.89750667]
[1748756104184,0.41013717,104630.0,104620.0,1.8924725]
[1748756104614,0.41013717,104630.0,104620.0,1.89347246]
[1748756105083,0.41969438,104630.0,104620.0,1.89347246]
[1748756105437,0.41969438,104630.0,104620.0,1.8845143]
[1748756105684,0.41013717,104630.0,104620.0,1.8845143]
[1748756105836,0.41013717,104630.0,104620.0,1.89347247]
[1748756106044,0.41013717,104630.0,104620.0,1.91138881]
[1748756106811,0.41013717,104630.0,104620.0,1.91137863]
[1748756107196,0.41969438,104630.0,104620.0,1.91135827]
[1748756107413,0.41969438,104630.0,104620.0,1.8845143]
[1748756107628,0.41013708,104630.0,104620.0,1.91135827]
[1748756108287,0.41013708,104630.0,104620.0,1.90240308]
[1748756108506,0.41013708,104630.0,104620.0,1.91134745]
[1748756108685,0.41013708,104630.0,104620.0,1.9113475]
[1748756108884,0.4196942,104630.0,104620.0,1.9113475]
[1748756109133,0.41013708,104630.0,104620.0,1.91134748]
[1748756109309,0.41013708,104630.0,104620.0,1.91804905]
[1748756109525,0.41969411,104630.0,104620.0,1.91804907]
[1748756109825,0.41013708,104630.0,104620.0,1.91804732]
[1748756110176,0.41013708,104630.0,104620.0,1.90015852]
[1748756110383,0.41969429,104630.0,104620.0,1.91804239]
[1748756110590,0.41969429,104630.0,104620.0,1.89121587]
[1748756110793,0.4196942,104630.0,104620.0,1.90015805]
[1748756111005,0.4196942,104630.0,104620.0,1.91804241]
[1748756111203,0.4196942,104630.0,104620.0,1.91804044]
[1748756112077,0.4196942,104630.0,104620.0,1.89121587]
[1748756112279,0.40058014,104630.0,104620.0,1.89121587]
[1748756112487,0.41013708,104630.0,104620.0,1.89121587]
[1748756112912,0.40058014,104630.0,104620.0,1.89121587]
[1748756113130,0.38146664,104630.0,104620.0,1.89121587]
[1748756113339,0.3910233,104630.0,104620.0,1.89121587]
[1748756113563,0.40058014,104630.0,104620.0,1.90015694]
[1748756113773,0.38146664,104630.0,104620.0,1.89121587]
[1748756114024,0.38146664,104630.0,104620.0,1.90015691]
[1748756114474,0.38146664,104630.0,104620.0,1.92697994]
[1748756114684,0.38146664,104630.0,104620.0,1.90015691]
[1748756115107,0.38146664,104630.0,104620.0,1.99601121]
[1748756115555,0.38146664,104630.0,104620.0,2.00495162]
[1748756115728,0.38146664,104630.0,104620.0,2.00495159]
[1748756115960,0.38146664,104630.0,104620.0,2.01389198]
[1748756116175,0.38146664,104630.0,104620.0,2.01389197]
[1748756116356,0.38146664,104630.0,104620.0,1.99601121]
[1748756116600,0.38146664,104630.0,104620.0,2.02283106]
[1748756117137,0.38146664,104630.0,104620.0,2.0228246]
[1748756117356,0.38146664,104630.0,104620.0,2.02282461]
[1748756117557,0.38146664,104630.0,104620.0,2.02282351]
[1748756118407,0.38146664,104630.0,104620.0,2.01388608]
[1748756118779,0.38146664,104630.0,104620.0,2.01388266]
[1748756119219,0.38146664,104630.0,104620.0,1.99601121]
[1748756119546,0.38146664,104630.0,104620.0,2.01388266]
[1748756120476,0.38146664,104630.0,104620.0,2.01388279]
[1748756121038,0.39776664,104630.0,104620.0,1.99601121]
[1748756121219,0.4073233,104630.0,104620.0,2.01388279]
[1748756121423,0.41346664,104630.0,104620.0,2.01388584]
[1748756121663,0.4230233,104630.0,104620.0,2.01388584]
[1748756121874,0.4230233,104630.0,104620.0,2.01388571]
[1748756122118,0.41346664,104630.0,104620.0,2.01388571]
[1748756122454,0.41346664,104630.0,104620.0,1.99601121]
[1748756122598,0.41336727,104630.0,104620.0,1.99601121]
[1748756122801,0.41336727,104630.0,104620.0,2.01389219]
[1748756123074,0.41336727,104630.0,104620.0,1.67495752]
[1748756123286,0.42292393,104630.0,104620.0,2.01389265]
[1748756124484,0.43248068,104630.0,104620.0,1.99601121]
[1748756124663,0.43248068,104630.0,104620.0,2.01389265]
[1748756125450,0.43248068,104630.0,104620.0,1.72453265]
[1748756125707,0.44203762,104630.0,104620.0,2.01385265]
[1748756125917,0.43248068,104630.0,104620.0,2.01385265]
[1748756126137,0.43248068,104630.0,104620.0,2.01385331]
[1748756126319,0.43248068,104630.0,104620.0,2.01423322]
[1748756126498,0.44203762,104630.0,104620.0,2.01419322]
[1748756127069,0.44203762,104630.0,104620.0,2.01419402]
[1748756127327,0.44203762,104630.0,104620.0,2.01419401]
[1748756128906,0.44203762,104630.0,104620.0,2.01420777]
[1748756129129,0.43248068,104630.0,104620.0,2.01420777]
[1748756129342,0.43248068,104630.0,104620.0,2.01420814]
[1748756129628,0.44203752,104630.0,104620.0,1.99631112]
[1748756129844,0.44203752,104630.0,104620.0,2.01420814]
[1748756130045,0.45159446,104630.0,104620.0,2.00750657]
[1748756130342,0.45159446,104630.0,104620.0,1.98960955]
[1748756130548,0.45159446,104630.0,104620.0,2.00750695]
[1748756131175,0.45159446,104630.0,104620.0,1.98960955]
[1748756131372,0.45159446,104630.0,104620.0,2.00750695]
[1748756131575,0.45159446,104630.0,104620.0,1.68645326]
[1748756131803,0.45159446,104630.0,104620.0,2.00750695]
[1748756131996,0.45159446,104630.0,104620.0,2.00750734]
[1748756132401,0.45159446,104630.0,104620.0,1.98960955]
[1748756132616,0.45159446,104630.0,104620.0,2.00750734]
[1748756132816,0.45159446,104630.0,104620.0,1.98960955]
[1748756133020,0.45159446,104630.0,104620.0,2.00750734]
[1748756133370,0.45159446,104630.0,104620.0,2.00750772]
[1748756134006,0.45159446,104630.0,104620.0,1.98960955]
[1748756134204,0.44203752,104630.0,104620.0,1.98960955]
[1748756134443,0.44203752,104630.0,104620.0,2.00750772]
[1748756135362,0.44203752,104630.0,104620.0,1.98960955]
[1748756135576,0.44203752,104630.0,104620.0,2.00750808]
[1748756135791,0.44203752,104630.0,104620.0,1.98960955]
[1748756136182,0.44203752,104630.0,104620.0,2.00750808]
[1748756136594,0.45159446,104630.0,104620.0,2.00750808]
[1748756137361,0.45159446,104630.0,104620.0,2.00750965]
[1748756137745,0.45159446,104630.0,104620.0,1.98960955]
[1748756137953,0.45159446,104630.0,104620.0,2.00751146]
[1748756138608,0.45159446,104630.0,104620.0,2.09547146]
[1748756138833,0.44203752,104630.0,104620.0,2.09547146]
[1748756139045,0.44203752,104630.0,104620.0,2.09547183]
[1748756139613,0.44203752,104630.0,104620.0,2.0954748]
[1748756139812,0.44203752,104630.0,104620.0,2.07756955]
[1748756140120,0.44203752,104630.0,104620.0,2.0954748]
[1748756140615,0.44203752,104630.0,104620.0,2.09547511]
[1748756140962,0.44203752,104630.0,104620.0,2.07756955]
[1748756141164,0.44203752,104630.0,104620.0,2.09547511]
[1748756141498,0.45159455,104630.0,104620.0,2.09547511]
[1748756141703,0.44203752,104630.0,104620.0,2.09548188]
[1748756142124,0.44203752,104630.0,104620.0,1.71824198]
[1748756142326,0.45159455,104630.0,104620.0,1.80620198]
[1748756142533,0.45159455,104630.0,104620.0,2.09548198]
[1748756142967,0.45159455,104630.0,104620.0,1.80620198]
[1748756143172,0.43589455,104630.0,104620.0,2.09548208]
[1748756143557,0.43589455,104630.0,104620.0,2.08652271]
[1748756143791,0.41959455,104630.0,104620.0,2.06861018]
[1748756145622,0.41003752,104630.0,104620.0,2.06861018]
[1748756146896,0.43529455,104630.0,104620.0,2.06861018]
[1748756147325,0.45059455,104630.0,104620.0,2.06861018]
[1748756148302,0.44103752,104630.0,104620.0,2.06861018]
[1748756148908,0.45059455,104630.0,104620.0,2.06861018]
[1748756150028,0.45059446,104630.0,104620.0,2.06861018]
[1748756155874,0.44103752,104630.0,104620.0,2.06861018]
[1748756156214,0.41236727,104630.0,104620.0,2.06861018]
[1748756156441,0.42192393,104630.0,104620.0,2.06861018]
[1748756156858,0.41236727,104630.0,104620.0,2.06861018]
[1748756157316,0.39666727,104630.0,104620.0,2.06861018]
[1748756157521,0.38136727,104630.0,104620.0,2.06861018]
[1748756159745,0.38136727,104630.0,104620.0,2.38966387]
[1748756163416,0.38136727,104630.0,104620.0,2.38070442]
[1748756170167,0.38136727,104630.0,104620.0,1.73859704]
[1748756170348,0.38136727,104630.0,104620.0,2.38070442]
[1748756173473,0.38136727,104630.0,104620.0,2.37174496]
[1748756174104,0.39686727,104630.0,104620.0,2.37174496]
[1748756174269,0.41246727,104630.0,104620.0,2.37174496]
[1748756174900,0.41246727,104630.0,104620.0,2.37136505]
[1748756176385,0.39686727,104630.0,104620.0,2.37136505]
[1748756176624,4.852e-05,104630.0,104620.0,3.04695959]
[1748756176873,4.852e-05,104630.0,104620.0,2.75972756]
[1748756177308,4.852e-05,104630.0,104620.0,2.75872756]
[1748756178358,4.852e-05,104630.0,104620.0,2.7249059]
[1748756178577,4.852e-05,104630.0,104620.0,2.7269059]
[1748756178769,4.852e-05,104630.0,104620.0,2.72726373]
[1748756179124,4.852e-05,104630.0,104620.0,2.72326373]
[1748756179526,4.852e-05,104630.0,104620.0,2.72726373]
[1748756179731,4.852e-05,104630.0,104620.0,2.08515635]
[1748756180126,0.03074852,104630.0,104620.0,2.73126373]
[1748756184331,0.01524852,104630.0,104620.0,2.73126373]
[1748756184704,4.852e-05,104630.0,104620.0,2.73126373]
[1748756193884,0.01594852,104630.0,104620.0,2.73126373]
[1748756194089,0.03124852,104630.0,104620.0,2.73126373]
[1748756195084,0.03124852,104630.0,104620.0,2.80126373]
[1748756196345,0.03124852,104630.0,104620.0,2.73126373]
[1748756199325,0.03124852,104630.0,104620.0,2.74467362]
[1748756200052,4.852e-05,104630.0,104620.0,2.74467362]
[1748756200202,4.852e-05,104630.0,104620.0,2.81467362]
[1748756201337,4.852e-05,104630.0,104620.0,2.58528624]
[1748756201545,0.03234852,104630.0,104620.0,3.15739362]
[1748756202612,4.852e-05,104630.0,104620.0,3.20739362]
[1748756202817,4.852e-05,104630.0,104620.0,3.24118226]
[1748756203030,0.0323,104640.0,104630.0,0.55982111]
[1748756203232,0.0323,104640.0,104630.0,0.97721596]
[1748756204075,0.016,104640.0,104630.0,0.97721596]
[1748756204313,0.03821697,104660.0,104650.0,0.21977911]
[1748756204518,0.0286625,104660.0,104650.0,0.21977911]
[1748756206598,0.03821706,104660.0,104650.0,0.21977911]
[1748756208141,0.0286625,104660.0,104650.0,0.21977911]
[1748756208338,0.03821706,104660.0,104650.0,0.21977911]
[1748756208547,0.0286625,104660.0,104650.0,0.21977911]
[1748756209949,0.01910812,104660.0,104650.0,0.21977911]
[1748756210350,0.0286625,104660.0,104650.0,0.21977911]
[1748756214811,0.00955392,104660.0,104650.0,0.21977911]
[1748756215021,0.0286624,104660.0,104650.0,0.21977911]
[1748756216860,0.03821669,104660.0,104650.0,0.21977911]
[1748756217005,0.0382166,104660.0,104650.0,0.21977911]
[1748756219905,0.02866222,104660.0,104650.0,0.21977911]
[1748756220145,0.0382166,104660.0,104650.0,0.21977911]
[1748756221111,0.02866222,104660.0,104650.0,0.21977911]
[1748756221339,0.03821651,104660.0,104650.0,0.21977911]
[1748756222563,0.04777089,104660.0,104650.0,0.21977911]
[1748756225405,0.03821697,104660.0,104650.0,0.21977911]
[1748756226630,0.02866259,104660.0,104650.0,0.21977911]
[1748756227107,0.03821697,104660.0,104650.0,0.21977911]
[1748756229900,0.0191083,104660.0,104650.0,0.21977911]
[1748756230071,0.01910839,104660.0,104650.0,0.21977911]
[1748756230964,0.02866277,104660.0,104650.0,0.21977911]
[1748756231784,0.01910839,104660.0,104650.0,0.21977911]
[1748756233567,0.02866286,104660.0,104650.0,0.21977911]
[1748756233750,0.01910839,104660.0,104650.0,0.21977911]
[1748756234168,0.01910839,104660.0,104650.0,0.22649533]
[1748756234307,0.02866277,104660.0,104650.0,0.22649533]
[1748756234980,0.01910839,104660.0,104650.0,0.22649533]
[1748756235150,0.01910839,104660.0,104650.0,0.22649531]
[1748756235334,0.01910839,104660.0,104650.0,0.22649533]
[1748756237045,0.01910839,104660.0,104650.0,0.22649581]
[1748756237459,0.01910839,104660.0,104650.0,0.21977911]
[1748756237855,0.01910839,104660.0,104650.0,0.2264958]
[1748756238461,0.0095541,104660.0,104650.0,0.2264958]
[1748756238774,0.0355083,104660.0,104650.0,0.2264958]
[1748756239193,0.0510083,104660.0,104650.0,0.2264958]
[1748756240888,0.0414541,104660.0,104650.0,0.2264958]
[1748756242114,0.0414541,104660.0,104650.0,0.22649579]
[1748756242669,0.05100839,104660.0,104650.0,0.22649579]
[1748756242865,0.0414541,104660.0,104650.0,0.21977911]
[1748756243121,0.05100839,104660.0,104650.0,0.22649579]
[1748756243348,0.05100839,104660.0,104650.0,0.2264958]
[1748756243563,0.0510083,104660.0,104650.0,0.22649579]
[1748756244192,0.06056268,104660.0,104650.0,0.22649579]
[1748756244360,0.0510083,104660.0,104650.0,0.22649578]
[1748756244763,0.0510083,104660.0,104650.0,0.21977911]
[1748756244972,0.0510083,104660.0,104650.0,0.22649578]
[1748756245766,0.0346083,104660.0,104650.0,0.22649578]
[1748756245941,0.0250541,104660.0,104650.0,0.22649578]
[1748756246438,0.0095541,104660.0,104650.0,0.22649578]
[1748756246666,0.0095541,104660.0,104650.0,0.21977911]
[1748756247112,0.0095541,104660.0,104650.0,0.22649578]
[1748756248143,0.01910839,104660.0,104650.0,0.22649578]
[1748756248366,0.01910839,104660.0,104650.0,0.21977911]
[1748756248584,0.01910839,104660.0,104650.0,0.22649578]
[1748756249476,0.03420839,104660.0,104650.0,0.22649578]
[1748756249867,0.05080839,104660.0,104650.0,0.22649578]
[1748756250288,0.06036286,104660.0,104650.0,0.22649578]
[1748756250732,0.05080839,104660.0,104650.0,0.22649578]
[1748756250936,0.0412541,104660.0,104650.0,0.22649577]
[1748756251143,0.05080848,104660.0,104650.0,0.22649577]
[1748756251942,0.05080848,104660.0,104650.0,0.21977911]
[1748756252475,0.05080848,104660.0,104650.0,0.22649577]
[1748756254789,0.05080848,104660.0,104650.0,0.21977911]
[1748756255011,0.05080848,104660.0,104650.0,0.22649576]
[1748756255324,0.05080848,104660.0,104650.0,0.22649577]
[1748756256201,0.05080848,104660.0,104650.0,0.21977911]
[1748756256416,0.05080848,104660.0,104650.0,0.22649577]
[1748756257230,0.05080848,104660.0,104650.0,0.21977911]
[1748756257456,0.05080848,104660.0,104650.0,0.22649577]
[1748756257623,0.05080848,104660.0,104650.0,0.21977911]
[1748756258092,0.05080848,104660.0,104650.0,0.22649577]
[1748756258922,0.06036277,104660.0,104650.0,0.22649577]
[1748756259327,0.06036277,104660.0,104650.0,0.22649576]
[1748756259689,0.06036277,104660.0,104650.0,0.21977911]
[1748756260185,0.05080839,104660.0,104650.0,0.21977911]
[1748756260635,0.05080839,104660.0,104650.0,0.22649576]
[1748756261451,0.05080839,104660.0,104650.0,0.21977911]
[1748756262242,0.05080839,104660.0,104650.0,0.22649576]
[1748756263094,0.05080839,104660.0,104650.0,0.21977911]
[1748756263297,0.05080839,104660.0,104650.0,0.22649577]
[1748756263907,0.05080839,104660.0,104650.0,0.21977911]
[1748756264105,0.05080839,104660.0,104650.0,0.22649577]
[1748756265074,0.06036277,104660.0,104650.0,0.22649577]
[1748756265431,0.06036277,104660.0,104650.0,0.21977911]
[1748756265585,0.06036277,104660.0,104650.0,0.22649577]
[1748756266038,0.06036277,104660.0,104650.0,0.22649578]
[1748756267890,0.06036277,104660.0,104650.0,0.22649579]